Cogmind - Beta 15 @@@ ROGUE MODE // 2025.10.10 @ 18:18:14 Player: Maxikiosco Result: Self-destructed Performance ------------- Evolutions (1) 500 Regions Visited (2) 400 Robots Destroyed (31) 155 Value Destroyed (760) 760 Prototype IDs (0) 0 Alien Tech Used (0) 0 Bonus (0) 0 TOTAL SCORE: 1815 Bonus ------- None Cogmind --------- Core Integrity 224/400 Matter 158/300 Energy 250/250 System Corruption 0% Temperature Warm (130) Movement Walking (120) Location -9/Materials Parts ------- > --- POWER (1) -------- Ion Engine > --- PROPULSION (2) --- Aluminum Leg Improved Aluminum Leg > --- UTILITY (2) ------ Small Storage Unit Hardened Light Armor Plating > --- WEAPON (4) ------- Small Laser Heavy Assault Rifle Grenade Launcher > --- INVENTORY (8) ---- Aluminum Leg Aluminum Leg Aluminum Leg Aluminum Leg Medium Storage Unit EM Shotgun Mining Laser Peak State ------------ > --- POWER ------------ Ion Engine > --- PROPULSION ------- Aluminum Leg Aluminum Leg > --- UTILITY ---------- Small Storage Unit Seismic Detector > --- WEAPON ----------- EM Shotgun EM Shotgun EM Shotgun Mini Grenade Launcher > --- INVENTORY -------- Ion Engine Aluminum Leg Aluminum Leg Medium Storage Unit EM Shotgun Grenade Launcher Mining Laser [Rating: 13] Favorites ----------- Power Ion Engine Engine Ion Engine Propulsion Aluminum Leg Leg Aluminum Leg Utility Small Storage Unit Device Seismic Detector Storage Small Storage Unit Protection Hardened Light Armor Plating Weapon EM Shotgun Energy Gun EM Shotgun Ballistic Gun Light Assault Rifle Launcher Grenade Launcher Special Weapon Mining Laser Build | -11 -10 -9 ------- Run | Yrd Mat Mat Slots Evolved 2 | . . 2 Power . | . . . Propulsion . | . . . Utility . | . . . Weapon 2 | . . 2 Parts Attached 25 | 8 4 13 Power 2 | 1 . 1 Engine 2 | 1 . 1 Core . | . . . Reactor . | . . . Propulsion 6 | 2 . 4 Treads . | . . . Leg 6 | 2 . 4 Wheel . | . . . Hover . | . . . Flight . | . . . Utility 4 | 2 1 1 Device 1 | 1 . . Storage 2 | 1 1 . Processor . | . . . Hackware . | . . . Protection 1 | . . 1 Artifact . | . . . Weapon 13 | 3 3 7 Energy Gun 7 | 1 2 4 Energy Cannon . | . . . Ballistic Gun 3 | 2 . 1 Ballistic Cannon . | . . . Launcher 2 | . 1 1 Special Weapon 1 | . . 1 Impact Weapon . | . . . Slashing Weapon . | . . . Piercing Weapon . | . . . Special Melee Weapon . | . . . Unidentified Prototypes . | . . . Parts Lost 4 | . . 4 Power 1 | . . 1 Propulsion . | . . . Utility . | . . . Weapon 3 | . . 3 Highest Loss Streak 3 | . . 3 To Critical Strikes . | . . . Average Backups 6 | 1 6 6 Power . | . 1 . Propulsion 1 | . 1 3 Utility . | . . 1 Weapon 3 | . 4 2 Tool/Special . | . . . Unused Backups 2 | . . 2 Power . | . . . Propulsion 2 | . . 2 Utility . | . . . Weapon . | . . . Tool/Special . | . . . Average Slot Usage (%) 98 | . 99 94 Engine 12 | . 14 10 Leg 26 | . 28 22 Device 11 | . 13 7 Storage 13 | . 14 11 Protection 1 | . . 3 Energy Gun 24 | . 24 23 Ballistic Gun 3 | . 2 5 Launcher 3 | . . 10 Peak Build Rating 13 | 7 10 13 Average Rating 9 | 5 9 11 On Entrance 5 | . 7 10 Naked Turns . | . . . Heaviest Build 25 | 13 22 25 Greatest Support 23 | 20 20 23 Greatest Overweight (x) 1 | . 1 1 Average Overweight (x) . | . . . Largest Inventory Capacity 10 | 8 10 8 Average Capacity 7 | 7 8 8 Most Carried 8 | 3 8 8 Average Carried 6 | 1 7 6 Final Capacity 8 | 8 8 8 Final Carried 8 | 2 8 7 Class Distribution -------------------- 73% | Mutant 10% | Scavenger-Tank 7% | Scavenger-Gunner 7% | Gunner Dominant Class ---------------- Mutant | -10/Materials Scavenger-Tank | -9/Materials Resources | -11 -10 -9 ----------- Run | Yrd Mat Mat Matter Collected 585 | 286 127 172 Remotely . | . . . Salvage Created 938 | 49 480 409 Parts 62 | 5 28 29 Haulers Intercepted 1 | . 1 . Recyclers Shooed 1 | . . 1 Parts Field Recycled . | . . . Retrieved Matter . | . . . Parts Self-Destructed . | . . . Prevented . | . . . Kills | -11 -10 -9 ------- Run | Yrd Mat Mat Combat Hostiles Destroyed 22 | . 12 10 Guns 11 | . 6 5 AOE 10 | . 5 5 Classes Destroyed 9 | 1 5 3 Builder 2 | . . 2 Tunneler 2 | 2 . . Hauler 1 | . 1 . Recycler 1 | . . 1 Operator 1 | . 1 . Watcher 2 | . 2 . Swarmer 6 | . 6 . Grunt 13 | . 6 7 Sentry 3 | . . 3 Best Kill Streak 6 | 1 6 5 Combat Bots Only 5 | . 5 4 Max Kills in Single Turn 3 | 1 3 2 Gunslinging . | . . . Exploded 3 | . 3 1 Melee . | . . . Uniques/NPCs Destroyed . | . . . Combat | -11 -10 -9 -------- Run | Yrd Mat Mat Hostile Shots Fired 92 | . 39 53 Missed 33 | . 15 18 Hits 59 | . 24 35 Projectile 59 | . 24 35 Critical Strikes 1 | . . 1 Damage Taken 971 | . 323 648 Core 246 | . 70 176 Absorbed by Shields . | . . . Regen/Repaired (Parts) 10 | . 10 . Core Remaining (%) 86 | 100 72 . Volleys Fired 62 | 14 28 20 Largest 4 | 2 2 4 Hottest 171 | 70 90 171 Shots Fired 140 | 28 50 62 Gun 124 | 28 49 47 Cannon . | . . . Launcher 14 | . 1 13 Special 2 | . . 2 Kinetic 37 | 27 . 10 Thermal 23 | 1 . 22 Explosive 14 | . 1 13 Electromagnetic 66 | . 49 17 Robot Hit Streak 10 | 9 10 10 Robot Miss Streak 4 | 4 2 4 Penetration Max . | . . . Secondary Targets . | . . . Shots Hit Robots 101 | 19 42 40 Core Hits 59 | 6 24 29 Critical Kills . | . . . Critical Parts Destroyed . | . . . Critical Strikes 1 | . . 1 Burn 1 | . . 1 Melee Attacks . | . . . Impact . | . . . Slashing . | . . . Piercing . | . . . Sneak Attacks . | . . . Combat Hostiles . | . . . Follow-up Attacks . | . . . Damage Inflicted 2150 | 153 949 1048 Guns 1288 | 153 656 479 Cannons . | . . . Explosions 862 | . 293 569 Melee . | . . . Ramming . | . . . Kinetic 222 | 140 . 82 Thermal 588 | 13 293 282 Explosive 456 | . . 456 Electromagnetic 884 | . 656 228 Impact . | . . . Slashing . | . . . Piercing . | . . . Highest Corruption 2 | . 2 . Average Corruption 2 | . 2 . Corruption Purged . | . . . Corruption Blocked . | . . . Effects 3 | . 3 . Message Errors 1 | . 1 . Energy Discharges 1 | . 1 . Data Loss (major) 1 | . 1 . Overload Shots . | . . . Overflow Damage 17 | . 14 3 Projectiles . | . . . Explosions 17 | . 14 3 Melee . | . . . Knockbacks . | . . . Impact . | . . . Kinetic . | . . . Secondary . | . . . Self-Inflicted Damage 224 | . 79 145 Shots 7 | . 3 4 Rammed . | . . . Targets Rammed . | . . . Kicked . | . . . Crushed . | . . . Highest Temperature 455 | 20 157 455 Average Temperature 98 | 15 48 151 Received Heat Transfer 234 | . 75 159 Effects 4 | . . 4 Shutdowns 3 | . . 3 Energy Bleed 1 | . . 1 Siege Activations . | . . . Martial Activations . | . . . Shielding Activations . | . . . Robots Disrupted . | . . . Combat Hostiles . | . . . Robots Corrupted 1 | . 1 . Combat Hostiles 1 | . 1 . Parts Fried 2 | . 2 . Impact Corruptions . | . . . Robots Melted . | . . . Combat Hostiles . | . . . Parts Melted 1 | . . 1 Heat Transferred 1120 | 37 450 633 Parts Sabotaged . | . . . Parts Stolen . | . . . Parts Stripped . | . . . Power Chain Reactions 6 | . 4 2 Alert | -11 -10 -9 ------- Run | Yrd Mat Mat Maximum Alert Level 1 | . 1 1 Low Security (%) 85 | 100 83 85 Level 1 14 | . 16 14 Level 2 . | . . . Level 3 . | . . . Level 4 . | . . . Level 5 . | . . . High Security . | . . . Max Security . | . . . Peak Influence 240 | 5 240 217 Initial 85 | . . 85 Average 77 | . 60 137 Influence Increases 827 | 10 422 395 Destroy 0b10 Robot/C 440 | . 240 200 Destroy 0b10 Robot/NC 45 | 10 20 15 Destroy Leader 106 | . 56 50 Successful Hack 22 | . 17 5 Disable Machine 45 | . 15 30 Destroy Structure 94 | . 14 80 Lose Combat Pursuer 75 | . 60 15 Influence Decreases 625 | 10 220 395 Entered New Map 117 | . . 117 Time Decay 468 | 10 220 238 Lost Part 40 | . . 40 Squads Dispatched 6 | . 3 3 Investigation . | . . . Extermination . | . . . Reinforcement 6 | . 3 3 Assault . | . . . Garrison . | . . . Intercept . | . . . Searches Triggered . | . . . Construction Impeded 1 | . . 1 Haulers Reinforced . | . . . Active Scanning Responses . | . . . Cargo Convoy Interrupts . | . . . Stealth | -11 -10 -9 --------- Run | Yrd Mat Mat Distress Signals 5 | . 2 3 Communications Jammed . | . . . Distress Signals . | . . . Times Spotted 41 | . 25 16 Peak Tracking Total 5 | . 4 5 Tactical Retreats 4 | . 3 1 Traps | -11 -10 -9 ------- Run | Yrd Mat Mat Traps Triggered 3 | . 2 1 Indirectly . | . . . Trap Hack Attempts . | . . . Triggered . | . . . Disarmed . | . . . Reprogrammed . | . . . Reused . | . . . Traps Extracted . | . . . Installed . | . . . Triggered . | . . . Machines | -11 -10 -9 ---------- Run | Yrd Mat Mat Machines Disabled 3 | . 1 2 Max in Single Turn 1 | . 1 1 Machines Repaired . | . . . Machines Dismantled . | . . . Machines Sabotaged . | . . . Overloaded Fab Kills . | . . . Hacking | -11 -10 -9 --------- Run | Yrd Mat Mat Machines Accessed 5 | . 4 1 Terminals 3 | . 2 1 Fabricators . | . . . Repair Stations 1 | . 1 . Recycling Units 1 | . 1 . Scanalyzers . | . . . Garrison Access . | . . . Total Hacks 9 | . 8 1 Successful 6 | . 5 1 Failed 3 | . 3 . Catastrophic . | . . . Database Lockouts . | . . . Manual . | . . . Terminals 6 | . 5 1 Fabricators . | . . . Repair Stations 2 | . 2 . Recycling Units 1 | . 1 . Scanalyzers . | . . . Garrison Access . | . . . Terminal Hacks 3 | . 2 1 Locate Traps 2 | . 2 . Hauler Manifests 1 | . . 1 Fabricator Hacks . | . . . Repair Station Hacks 2 | . 2 . Scan Component 1 | . 1 . Repair 1 | . 1 . Recycling Unit Hacks 1 | . 1 . Process 1 | . 1 . Scanalyzer . | . . . Garrison Access Hacks . | . . . Unauthorized Hacks . | . . . Terminals . | . . . Fabricators . | . . . Repair Stations . | . . . Recycling Units . | . . . Scanalyzers . | . . . Garrison Access . | . . . Data Cores Recovered . | . . . Used . | . . . Hacking Detections 3 | . 3 . Full Trace Events . | . . . Feedback Events . | . . . Feedback Blocked . | . . . Robot Schematics Acquired . | . . . Robots Built . | . . . Authchips . | . . . Time . | . . . Total Robot Build Rating . | . . . Part Schematics Acquired . | . . . Parts Built . | . . . Authchips . | . . . Time . | . . . Total Part Build Rating . | . . . Parts Repaired 1 | . 1 . Time 36 | . 36 . Parts Recycled . | . . . Recycled Matter 16 | . 16 . Retrieved Matter . | . . . Retrieved Components . | . . . Parts Scanalyzed . | . . . Part Schematics Acquired . | . . . Parts Damaged . | . . . Bothacking | -11 -10 -9 ------------ Run | Yrd Mat Mat Used RIF Installer . | . . . Robots Hacked . | . . . Non-combat . | . . . Combat . | . . . Robot Hacks Applied . | . . . Relay Couplers Released . | . . . Fabnet Peak Effective % . | . . . Robots Rewired . | . . . Allies Hacked . | . . . Hacks Repelled . | . . . Allies | -11 -10 -9 -------- Run | Yrd Mat Mat Total Allies . | . . . Largest Group . | . . . Highest-Rated Group . | . . . Highest-Rated Ally . | . . . Total Orders . | . . . Ally Attacks . | . . . Total Damage . | . . . Kills . | . . . Allies Corrupted . | . . . Allies Melted . | . . . Intel | -11 -10 -9 ------- Run | Yrd Mat Mat Active Infowar (turns) 1386 | 8 1040 338 Seismic 1386 | 8 1040 338 Robot Analysis Total . | . . . Derelict Logs Recovered . | . . . Drone Launches . | . . . Drone Recoveries . | . . . Exploration | -11 -10 -9 ------------- Run | Yrd Mat Mat Turns Passed 1717 | 165 1048 504 Spaces Moved 927 | 94 584 249 Core 3 | 3 . . Treads . | . . . Legs 924 | 91 584 249 Wheels . | . . . Hover . | . . . Flight . | . . . Fastest Speed 50 | 50 120 120 Average Speed 129 | 117 121 152 Slowest Speed 190 | 120 190 190 Overloaded Moves . | . . . Propulsion Burnouts . | . . . Robots Hopped . | . . . Potential Cave-ins 2 | . . 2 Cave-ins Triggered . | . . . Exploration Rate (%) 37 | 5 82 25 Regions Visited 2 Branch Regions . Pre-discovered Areas . | . . . Known Exits Taken . | . . . Unknown Exits Taken 2 | 1 1 . Scrap Searched . | . . . Spaces Dug 2 | . . 2 Terrain Destroyed 114 | . 11 103 Melee . | . . . Projectile 2 | . . 2 AOE 112 | . 11 101 Terrain Rammed . | . . . Walls Destroyed . | . . . Machines Disabled . | . . . Actions | -11 -10 -9 --------- Run | Yrd Mat Mat Total 1314 | 122 869 323 Wait 266 | 4 234 28 Move 925 | 93 583 249 Hop . | . . . Pick Up 18 | 3 11 4 Fast Attach 9 | 6 . 3 Attach 12 | 1 2 9 Detach 3 | . . 3 Swap 14 | 1 8 5 Drop 5 | . 3 2 Fire 62 | 14 28 20 Melee . | . . . Ram . | . . . Kick . | . . . Crush . | . . . Escape Stasis . | . . . Rewire . | . . . Trap . | . . . Miscellaneous . | . . . Route ------- -11/Scrapyard -10/Materials (discovered 3 exits: *Mat x2 / [*Min]) -9/Materials (discovered 1 exit: [*Min]) History --------- Turn | Location | Event 4 | -11/Scrapyard | Discovered new exit (range 16) 166 | -11/Scrapyard | Entered Materials 306 | -10/Materials | Build established: Mutant 313 | -10/Materials | Discovered new exit (range 16) 512 | -10/Materials | Repaired Corrupted Aluminum Leg 947 | -10/Materials | Discovered new exit (range 15) 1089 | -10/Materials | Discovered new exit (range 8) 1214 | -10/Materials | Entered another Materials area 1214 | -9/Materials | Evolved 2 slots: Weapon x2 1411 | -9/Materials | Lost 3 parts (1p2w) 1525 | -9/Materials | Discovered new exit (range 15) 1718 | -9/Materials | Self-destructed Last Messages --------------- dispatching reinforcements to local area. Overheating: Energy bleed (-27). Y-45 Defender suffers critical hit (Burn). Power failure, Ion Engine shutdown. Critical hit (Burn: +37). Power failure, Ion Engine shutdown. Y-45 Defender destroyed. Power failure, Ion Engine shutdown. K-01 Serf collects debris. U-05 Engineer lays Concrete. K-01 Serf collects debris. U-05 Engineer builds a Door. K-01 Serf collects debris. U-05 Engineer lays Concrete. The unstable cave ceiling collapses. R-06 Scavenger destroyed. Beam Rifle destroyed. Destroyed Beam Rifle. K-01 Serf collects debris. U-05 Engineer builds a Wall. Map ----- +----------------------------------------------------+ | ????????# < #?????????????????????????????# | | ????????# #?????????????????????????????# | | ????????# #?????????????????????????????# | | ?????????# #??????????????????????????????# | | ?????????## ##??????????????????????????????# | | ??????????# #?????????????????############### | | ??????????# #?????????????????# | | ??????????# ########??????????# | | ???######## # """ #?????????## [ | | ???# # # """ #?######### """ """ | | ???# # # """ #?# |# """ """ | | ???# / + #?#""" # """ """ | | ???# """ # # #?#""" # | | ???# """ # # [ #?#""" # | | ???# """ # ########## + | | ???######## ## ##""" #* | | ??????????# ## """ ##""" # #% #### | | ??????????# ## "T" #""" ### T#?? | | ?????????## ## # # "" ##?? | | ?????????# ##/# ######## """" #??? | | ?????????# T u r % % """" ? | | ?????????# "" o | | ??????#### | | ????### # ]# # ##############+##### | | ????## ###+###### k######??##????? ????? | | ????## ! ## @ #??????????????????? | | ????# *= ### % ####??????????????????? | | ????## # """ #?# * #?????????????????????? | | ????# # """ #?## #?????????????????????? | | ????# # """ #??## ##?????????????????????? | | ?#### # #???# ??????????????????????? | | ?# # ] + ??????????????????????? | | ?# # #### ?????????????????????? | | ?# T # #######??? ?????????????????????? | | ?# ######???????? ????????????????????? | | ?# #????????????# ????????????????????? | | ?### ###????????????# #???????????????????? | | ???# #??????????????# #???????????????????? | | ???# #??????????????# #???????????????????? | | ???# #??????????????# #???????????????????? | | ???# #??????????????# ???????????????????? | | ???# #??????????????? ???????????????????? | | ???# #??????????????? ???????????????????? | | ???# #??????????????? ?????????????????????? | | ???# ##### ?????????????????????????? | | ???# #?????????????????????????????? | | ???####### #?????????????????????????????? | | ??????????????????????????????????????????????? | | ??????????????????????????????????????????????? | | ??????????????????????????????????????????????? | +----------------------------------------------------+ Best States ------------- Heat Dissipation 28 Energy Generation 10 Energy Capacity 250 Matter Stores 300 Matter Capacity 300 Sight Range 16 Terrain Scan Density 10 Armor Coverage 150 Evasion (%) 55 Item Schematics ----------------- None Robot Schematics ------------------ None Fabricated ------------ Nothing Repaired ---------- Aluminum Leg | 88% | -10/Materials | Corrupted Alien Tech Used ----------------- None Achievements -------------- None Challenges ------------ None Game ------ Seed LinkedGaussGreatsword Manual? 0 Play Time 00:24:06 Cumulative 7.6 hours Start 2025.10.09 @ 19:58:19 End 2025.10.10 @ 18:18:14 Sessions 3 Manual Loads 0 Difficulty Rogue Special Mode None Game No. 11 Rogue 8 Adventurer 3 Explorer 0 Win Type - Total 0 Types 0/0/0/0/0/0/0/0/0/0 Lore% 6 Gallery% 11 Achievement% 12 Wizard Run 0 Options --------- Layout 1 ASCII 0 Keyboard 0 Movement Numpad Keybinds 0 Fullscreen 1 Font 24/Smallcaps Map View 50x35 Zoom Use 0% Tactical HUD 0 Map Filters NONE Filters NONE Steam 1 RUN: 6f190b01-592a-4c7a-aca0-7650d26621c5